fUST/lending_fUST_20240227
["ID","MTS","AMOUNT","RATE_DAILY","PERIOD"]
[315408794,1709015441239,-500.0,0.00019178,2]
[315408795,1709015441248,-500.0,0.00019178,2]
[315408796,1709015441258,-500.0,0.00019178,2]
[315408797,1709015441267,-500.0,0.00019178,2]
[315408798,1709015441276,-500.0,0.00019178,2]
[315408799,1709015441285,-500.0,0.00019178,2]
[315408800,1709015441294,-500.0,0.00019178,2]
[315408801,1709015441303,-6918.5,0.00019178,2]
[315408802,1709015441312,-500.0,0.00019178,2]
[315408803,1709015441322,-500.0,0.00019178,2]
[315408804,1709015441331,-500.0,0.00019178,2]
[315408805,1709015441340,-500.0,0.00019178,2]
[315408806,1709015441350,-783.31,0.00019178,2]
[315408807,1709015441359,-500.0,0.00019178,2]
[315408808,1709015441368,-500.0,0.00019178,2]
[315408809,1709015441377,-500.0,0.00019178,2]
[315408810,1709015441386,-500.0,0.00019178,2]
[315408811,1709015441395,-500.0,0.00019178,2]
[315408812,1709015441404,-1424.35,0.00019178,2]
[315408813,1709015441413,-500.0,0.00019178,2]
[315408814,1709015441423,-904.68,0.00019178,2]
[315408815,1709015441432,-2851.88,0.00019178,2]
[315408816,1709015441441,-500.0,0.00019178,2]
[315408817,1709015441450,-18266.78,0.00019178,2]
[315408818,1709015441460,-2403.86,0.00019178,2]
[315408819,1709015441469,-503.20835864,0.00019178,2]
[315408820,1709015441479,-500.0,0.00019178,2]
[315408821,1709015441488,-3499.29,0.00019178,2]
[315408822,1709015441497,-500.0,0.00019178,2]
[315408823,1709015441506,-500.0,0.00019178,2]
[315408825,1709015441515,-544.99348939,0.00019178,2]
[315408826,1709015441525,-500.0,0.00019178,2]
[315408827,1709015441534,-500.0,0.00019178,2]
[315408828,1709015441544,-501.9436783,0.00019178,2]
[315408829,1709015441554,-443.10422866,0.00019178,2]
[315408830,1709015441563,-500.39586929,0.00019178,2]
[315408832,1709015441573,-500.0,0.00019178,2]
[315408833,1709015441582,-688.01,0.00019178,2]
[315408835,1709015441591,-500.0,0.00019178,2]
[315408837,1709015441600,-1266.31,0.00019178,2]
[315408838,1709015441611,-818.42,0.00019178,2]
[315408839,1709015441621,-500.0,0.00019178,2]
[315408840,1709015441632,-259.29438802,0.00019178,2]
[315408841,1709015441648,-1958.59,0.00019178,2]
[315408842,1709015441662,-500.0,0.00019178,2]
[315408843,1709015441673,-500.0,0.00019178,2]
[315408844,1709015441682,-500.0,0.00019178,2]
[315408845,1709015441692,-500.0,0.00019178,2]
[315408846,1709015441702,-500.0,0.00019178,2]
[315408847,1709015441711,-718.16,0.00019178,2]
[315408848,1709015441721,-401.70891154,0.00019178,2]
[315408849,1709015441730,-501.36407866,0.00019178,2]
[315408850,1709015441740,-500.0,0.00019178,2]
[315408851,1709015441749,-500.0,0.00019178,2]
[315408852,1709015441759,-1995.47,0.00019178,2]
[315408853,1709015441769,-500.0,0.00019178,2]
[315408854,1709015441778,-500.0,0.00019178,2]
[315408855,1709015441788,-500.0,0.00019178,2]
[315408856,1709015441797,-500.0,0.00019178,2]
[315408857,1709015441806,-500.0,0.00019178,2]
[315408858,1709015441816,-583.2051723,0.00019178,2]
[315408859,1709015441826,-500.0,0.00019178,2]
[315408860,1709015441835,-552.22,0.00019178,2]
[315408861,1709015441845,-8975.46,0.00019178,2]
[315408862,1709015441854,-500.0,0.00019178,2]
[315408863,1709015441863,-501.98121851,0.00019178,2]
[315408864,1709015441873,-500.96626582,0.00019178,2]
[315408865,1709015441883,-502.24533247,0.00019178,2]
[315408866,1709015441893,-1758.47,0.00019178,2]
[315408867,1709015441902,-3499.25,0.00019178,2]
[315408868,1709015441912,-2577.01,0.00019178,2]
[315408869,1709015441922,-500.0,0.00019178,2]
[315408870,1709015441931,-500.0,0.00019178,2]
[315408871,1709015441941,-17396.29,0.00019178,2]
[315408872,1709015441951,-502.99389628,0.00019178,2]
[315408873,1709015441961,-500.0,0.00019178,2]
[315408874,1709015441971,-268.55333724,0.00019178,2]
[315408875,1709015441980,-500.0,0.00019178,2]
[315408876,1709015441990,-500.67580525,0.00019178,2]
[315408877,1709015442000,-501.62472493,0.00019178,2]
[315408878,1709015442011,-500.91730771,0.00019178,2]
[315408879,1709015442021,-500.0,0.00019178,2]
[315408880,1709015442034,-500.0,0.00019178,2]
[315408881,1709015442044,-237.22654352,0.00019178,2]
[315408882,1709015442054,-1000.0,0.00019178,2]
[315408883,1709015442066,-500.0,0.00019178,2]
[315408884,1709015442076,-500.0,0.00019178,2]
[315408885,1709015442087,-1286.73,0.00019178,2]
[315408886,1709015442098,-860.53,0.00019178,2]
[315408887,1709015442110,-619.98,0.00019178,2]
[315408888,1709015442122,-500.0,0.00019178,2]
[315408889,1709015442133,-501.22080587,0.00019178,2]
[315408890,1709015442143,-500.0,0.00019178,2]
[315408891,1709015442154,-2579.92,0.00019178,2]
[315408892,1709015442165,-863.05,0.00019178,2]
[315408893,1709015442176,-500.0,0.00019178,2]
[315408894,1709015442187,-1307.58,0.00019178,2]
[315408895,1709015442198,-171.31810075,0.00019178,2]
[315408896,1709015442209,-500.0,0.00019178,2]
[315408897,1709015442219,-500.0,0.00019178,2]
[315408898,1709015442230,-694.82180753,0.00019178,2]
[315408899,1709015442241,-168.108309,0.00019178,2]
[315408900,1709015442251,-162.782902,0.00019178,2]
[315408901,1709015442262,-166.5602952,0.00019178,2]
[315408902,1709015442274,-166.666666,0.00019178,2]
[315408903,1709015442289,-500.0,0.00019232,2]
[315408904,1709015442302,-500.0,0.00019287,2]
[315408905,1709015442313,-200.6117409,0.000193,2]
[315408906,1709015442444,-200.6117409,0.000193,2]
[315408907,1709015442455,-500.0,0.00019342,2]
[315408908,1709015442466,-988.00616092,0.00019352,2]
[315408909,1709015442475,-153.0,0.0001937,2]
[315408910,1709015442485,-200.6117409,0.0001937,2]
[315408911,1709015442495,-153.0,0.0001937,2]
[315408912,1709015442504,-153.0,0.0001937,2]
[315408913,1709015442514,-200.6117409,0.0001937,2]
[315408914,1709015442524,-200.6117409,0.0001937,2]
[315408915,1709015442536,-200.6117409,0.0001937,2]
[315408916,1709015442547,-200.6117409,0.0001937,2]
[315408917,1709015442557,-200.6117409,0.0001937,2]
[315408918,1709015442567,-400.9906378,0.0001937,2]
[315408919,1709015442576,-153.0,0.0001937,2]
[315408920,1709015442586,-153.0,0.0001937,2]
[315408921,1709015442596,-153.0,0.0001937,2]
[315408922,1709015442606,-153.0,0.0001937,2]
[315408923,1709015442618,-153.0,0.0001937,2]
[315408924,1709015442627,-500.0,0.00019381,2]
[315408925,1709015442639,-500.0,0.00019396,2]
[315408926,1709015442648,-500.0,0.0001945,2]
[315408927,1709015442659,-1519.40144155,0.00019451,2]
[315408928,1709015442668,-850.77,0.00019451,2]
[315408929,1709015442678,-850.77,0.00019451,2]
[315408930,1709015442687,-850.77,0.00019451,2]
[315408931,1709015442696,-850.77,0.00019451,2]
[315408932,1709015442706,-500.0,0.00019451,2]
[315408933,1709015442715,-500.0,0.00019451,2]
[315408934,1709015442724,-500.0,0.00019452,2]
[315408935,1709015442733,-500.0,0.00019452,2]
[315408936,1709015442742,-500.0,0.00019452,2]
[315408937,1709015442751,-551.28665408,0.00019452,2]
[315408938,1709015442760,-1349.59,0.00019452,2]
[315408939,1709015442772,-500.0,0.00019452,2]
[315408940,1709015442784,-369.62759187,0.00019452,2]
[315408941,1709015442793,-602.67375131,0.00019452,2]
[315408942,1709015442803,-502.83624818,0.00019452,2]
[315408943,1709015442812,-255.55957885,0.00019452,2]
[315408944,1709015442821,-500.0,0.00019452,2]
[315408945,1709015442830,-500.0,0.00019452,2]
[315408946,1709015442839,-500.0,0.00019452,2]
[315408947,1709015442849,-502.37,0.00019452,2]
[315408948,1709015442858,-625.64,0.00019452,2]
[315408949,1709015442867,-500.0,0.00019452,2]
[315408950,1709015442877,-500.0,0.00019452,2]
[315408951,1709015442886,-500.0,0.00019452,2]
[315408952,1709015442895,-500.0,0.00019452,2]
[315408953,1709015442905,-534.54,0.00019452,2]
[315408954,1709015442914,-500.0,0.00019452,2]
[315408955,1709015442923,-500.0,0.00019452,2]
[315408956,1709015442932,-500.0,0.00019452,2]
[315408957,1709015442942,-410.10016763,0.00019452,2]
[315408958,1709015442950,-504.14013285,0.00019452,2]
[315408959,1709015442959,-500.0,0.00019452,2]
[315408960,1709015442968,-282.6196593,0.00019452,2]
[315408961,1709015442978,-500.0,0.00019452,2]
[315408962,1709015442987,-500.0,0.00019452,2]
[315408963,1709015442996,-523.18221423,0.00019452,2]
[315408964,1709015443005,-757.25,0.00019452,2]
[315408965,1709015443014,-292.53384056,0.00019452,2]
[315408966,1709015443023,-513.76,0.00019452,2]
[315408967,1709015443034,-822.89,0.00019452,2]
[315408968,1709015443043,-500.0,0.00019452,2]
[315408969,1709015443052,-294.53909541,0.00019452,2]
[315408970,1709015443062,-502.56,0.00019452,2]
[315408971,1709015443072,-1390.14,0.00019452,2]
[315408972,1709015443082,-500.0,0.00019452,2]
[315408973,1709015443091,-500.0,0.00019452,2]
[315408974,1709015443101,-500.0,0.00019452,2]
[315408975,1709015443111,-589.2876803,0.00019452,2]
[315408976,1709015443120,-500.0,0.00019452,2]
[315408977,1709015443130,-500.0,0.00019452,2]
[315408978,1709015443140,-387.93424642,0.00019452,2]
[315408979,1709015443150,-500.0,0.00019452,2]
[315408980,1709015443159,-162.83762222,0.00019452,2]
[315408981,1709015443168,-500.0,0.00019452,2]
[315408982,1709015443177,-3233.94,0.00019452,2]
[315408983,1709015443187,-1336.26,0.00019452,2]
[315408984,1709015443196,-500.0,0.00019452,2]
[315408985,1709015443206,-500.0,0.00019452,2]
[315408986,1709015443215,-2254.97,0.00019452,2]
[315408987,1709015443224,-500.0,0.00019452,2]
[315408988,1709015443233,-500.0,0.00019452,2]
[315408989,1709015443242,-500.0,0.00019452,2]
[315408990,1709015443251,-500.0,0.00019452,2]
[315408991,1709015443261,-1795.23,0.00019452,2]
[315408992,1709015443271,-500.0,0.00019452,2]
[315408993,1709015443282,-500.0,0.00019452,2]
[315408994,1709015443292,-500.0,0.00019452,2]
[315408995,1709015443301,-500.0,0.00019452,2]
[315408996,1709015443310,-1645.2,0.00019452,2]
[315408997,1709015443319,-500.86552404,0.00019452,2]
[315408998,1709015443328,-500.0,0.00019452,2]
[315408999,1709015443338,-211.14111785,0.00019452,2]
[315409000,1709015443347,-632.27431855,0.00019452,2]
[315409001,1709015443357,-573.44249112,0.00019452,2]
[315409002,1709015443366,-500.0,0.00019452,2]
[315409003,1709015443377,-507.5916589,0.00019452,2]
[315409004,1709015443386,-1393.89,0.00019452,2]
[315409005,1709015443396,-500.0,0.00019452,2]
[315409006,1709015443406,-500.0,0.00019452,2]
[315409007,1709015443415,-500.0,0.00019452,2]
[315409008,1709015443424,-500.0,0.00019452,2]
[315409009,1709015443434,-500.0,0.00019452,2]
[315409010,1709015443443,-500.0,0.00019452,2]
[315409011,1709015443452,-500.0,0.00019452,2]
[315409012,1709015443461,-6918.5,0.00019452,2]
[315409013,1709015443471,-500.0,0.00019452,2]
[315409014,1709015443480,-500.0,0.00019452,2]
[315409015,1709015443489,-783.31,0.00019452,2]
[315409016,1709015443498,-501.19562815,0.00019452,2]
[315409017,1709015443508,-500.0,0.00019452,2]
[315409018,1709015443517,-523.56834789,0.00019452,2]
[315409019,1709015443527,-500.0,0.00019452,2]
[315409020,1709015443536,-1424.35,0.00019452,2]
[315409021,1709015443545,-500.0,0.00019452,2]
[315409022,1709015443554,-904.68,0.00019452,2]
[315409023,1709015443563,-2851.88,0.00019452,2]
[315409024,1709015443572,-581.55260075,0.00019452,2]
[315409025,1709015443581,-18266.78,0.00019452,2]
[315409026,1709015443590,-2403.86,0.00019452,2]
[315409027,1709015443599,-500.0,0.00019452,2]
[315409028,1709015443609,-3499.29,0.00019452,2]
[315409029,1709015443618,-500.0,0.00019452,2]
[315409030,1709015443628,-500.0,0.00019452,2]
[315409031,1709015443639,-500.0,0.00019452,2]
[315409032,1709015443649,-688.01,0.00019452,2]
[315409033,1709015443658,-503.73065665,0.00019452,2]
[315409034,1709015443667,-1266.31,0.00019452,2]
[315409035,1709015443677,-818.42,0.00019452,2]
[315409036,1709015443687,-500.0,0.00019452,2]
[315409037,1709015443696,-1958.59,0.00019452,2]
[315409038,1709015443706,-500.0,0.00019452,2]
[315409039,1709015443715,-500.0,0.00019452,2]
[315409040,1709015443724,-500.0,0.00019452,2]
[315409041,1709015443733,-500.0,0.00019452,2]
[315409042,1709015443742,-500.0,0.00019452,2]
[315409043,1709015443751,-718.16,0.00019452,2]
[315409044,1709015443760,-500.0,0.00019452,2]
[315409045,1709015443770,-500.0,0.00019452,2]
[315409046,1709015443780,-1995.47,0.00019452,2]
[315409047,1709015443790,-226.05511992,0.00019452,2]
[315409048,1709015443799,-302.1536889,0.00019452,2]
[315409049,1709015443808,-500.0,0.00019452,2]
[315409050,1709015443817,-500.0,0.00019452,2]
[315409051,1709015443827,-552.22,0.00019452,2]
[315409052,1709015443836,-8975.46,0.00019452,2]
[315409053,1709015443845,-369.76023936,0.00019452,2]
[315409054,1709015443855,-1758.47,0.00019452,2]
[315409055,1709015443865,-3499.25,0.00019452,2]
[315409056,1709015443875,-2577.01,0.00019452,2]
[315409057,1709015443884,-500.0,0.00019452,2]
[315409058,1709015443893,-500.0,0.00019452,2]
[315409059,1709015443902,-17396.29,0.00019452,2]
[315409060,1709015443912,-501.29042956,0.00019452,2]
[315409061,1709015443921,-500.0,0.00019452,2]
[315409062,1709015443930,-500.0,0.00019452,2]
[315409063,1709015443939,-500.0,0.00019452,2]
[315409064,1709015443948,-1002.42085392,0.00019452,2]
[315409065,1709015443958,-502.32182453,0.00019452,2]
[315409066,1709015443967,-500.0,0.00019452,2]
[315409067,1709015443976,-1286.73,0.00019452,2]
[315409068,1709015443985,-860.53,0.00019452,2]
[315409069,1709015443994,-619.98,0.00019452,2]
[315409070,1709015444004,-320.86018493,0.00019452,2]
[315409071,1709015444013,-500.0,0.00019452,2]
[315409072,1709015444022,-2579.92,0.00019452,2]
[315409073,1709015444033,-863.05,0.00019452,2]
[315409074,1709015444043,-500.0,0.00019452,2]
[315409075,1709015444052,-1307.58,0.00019452,2]
[315409076,1709015444061,-500.0,0.00019452,2]
[315409077,1709015444071,-988.0061609,0.00019489,2]
[315409078,1709015444080,-153.0,0.000195,2]
[315409079,1709015444090,-153.0,0.000195,2]
[315409080,1709015444098,-153.0,0.000195,2]
[315409081,1709015444107,-401.2234818,0.000195,2]
[315409082,1709015444116,-500.0,0.00019506,2]
[315409083,1709015444125,-186.79569354,0.00019561,2]
[315409084,1709015444134,-988.0061609,0.00019626,2]
[315409085,1709015444144,-166.666666,0.00019627,2]
[315409086,1709015444153,-153.0,0.00019685,2]
[315409087,1709015444162,-200.6117409,0.00019699,2]
[315409088,1709015444171,-200.6117409,0.00019699,2]
[315409089,1709015444181,-200.6117409,0.00019699,2]
[315409090,1709015444190,-500.0,0.00019699,2]
[315409091,1709015444200,-153.0,0.000197,2]
[315409092,1709015444209,-153.0,0.000197,2]
[315409093,1709015444218,-153.0,0.000197,2]
[315409094,1709015444227,-850.77,0.00019724,2]
[315409095,1709015444236,-850.77,0.00019725,2]
[315409096,1709015444245,-850.77,0.00019725,2]
[315409097,1709015444254,-850.77,0.00019725,2]
[315409098,1709015444263,-500.0,0.00019725,2]
[315409099,1709015444272,-500.0,0.00019725,2]
[315409100,1709015444283,-500.0,0.00019726,2]
[315409101,1709015444292,-500.0,0.00019726,2]
[315409102,1709015444302,-500.0,0.00019726,2]
[315409103,1709015444311,-1349.59,0.00019726,2]
[315409104,1709015444320,-502.56998248,0.00019726,2]
[315409105,1709015444329,-507.42166358,0.00019726,2]
[315409106,1709015444338,-500.0,0.00019726,2]
[315409107,1709015444348,-500.0,0.00019726,2]
[315409108,1709015444357,-502.37,0.00019726,2]
[315409109,1709015444367,-625.64,0.00019726,2]
[315409110,1709015444376,-500.0,0.00019726,2]
[315409111,1709015444385,-500.0,0.00019726,2]
[315409112,1709015444395,-500.0,0.00019726,2]
[315409113,1709015444404,-500.0,0.00019726,2]
[315409114,1709015444414,-500.0,0.00019726,2]
[315409115,1709015444424,-534.54,0.00019726,2]
[315409116,1709015444433,-500.0,0.00019726,2]
[315409117,1709015444443,-500.0,0.00019726,2]
[315409118,1709015444453,-500.0,0.00019726,2]
[315409119,1709015444462,-500.0,0.00019726,2]
[315409120,1709015444472,-500.0,0.00019726,2]
[315409121,1709015444481,-757.25,0.00019726,2]
[315409122,1709015444491,-513.76,0.00019726,2]
[315409123,1709015444582,-822.89,0.00019726,2]
[315409124,1709015444591,-502.56,0.00019726,2]
[315409125,1709015444601,-1390.14,0.00019726,2]
[315409126,1709015444611,-527.39049889,0.00019726,2]
[315409127,1709015444621,-158.76788744,0.00019726,2]
[315409128,1709015444632,-500.0,0.00019726,2]
[315409129,1709015444643,-290.43863408,0.00019726,2]
[315409130,1709015444652,-500.0,0.00019726,2]
[315409131,1709015444662,-500.0,0.00019726,2]
[315409132,1709015444672,-500.0,0.00019726,2]
[315409133,1709015444681,-3233.94,0.00019726,2]
[315409134,1709015444691,-1336.26,0.00019726,2]
[315409135,1709015444700,-500.0,0.00019726,2]
[315409136,1709015444711,-2254.97,0.00019726,2]
[315409137,1709015444721,-500.0,0.00019726,2]
[315409138,1709015444730,-500.0,0.00019726,2]
[315409139,1709015444740,-500.0,0.00019726,2]
[315409140,1709015444749,-500.0,0.00019726,2]
[315409141,1709015444758,-500.0,0.00019726,2]
[315409142,1709015444767,-1795.23,0.00019726,2]
[315409143,1709015444777,-500.0,0.00019726,2]
[315409144,1709015444786,-500.0,0.00019726,2]
[315409145,1709015444797,-212.44196053,0.00019726,2]
[315409146,1709015444806,-1645.2,0.00019726,2]
[315409147,1709015444816,-500.0,0.00019726,2]
[315409148,1709015444825,-500.0,0.00019726,2]
[315409149,1709015444835,-1393.89,0.00019726,2]
[315409150,1709015444845,-395.16181797,0.00019726,2]
[315409151,1709015444854,-500.0,0.00019726,2]
[315409152,1709015444863,-494.64072621,0.00019726,2]
[315409153,1709015444873,-500.0,0.00019726,2]
[315409154,1709015444882,-500.0,0.00019726,2]
[315409155,1709015444891,-317.207108,0.00019726,2]
[315409156,1709015444900,-6918.5,0.00019726,2]
[315409157,1709015444910,-500.99882083,0.00019726,2]
[315409158,1709015444919,-500.0,0.00019726,2]
[315409159,1709015444928,-783.31,0.00019726,2]
[315409160,1709015444938,-500.0,0.00019726,2]
[315409161,1709015444947,-500.0,0.00019726,2]
[315409162,1709015444957,-1424.35,0.00019726,2]
[315409163,1709015444966,-500.0,0.00019726,2]
[315409164,1709015444975,-904.68,0.00019726,2]
[315409165,1709015444984,-2851.88,0.00019726,2]
[315409166,1709015444994,-18266.78,0.00019726,2]
[315409167,1709015445003,-2403.86,0.00019726,2]
[315409168,1709015445012,-183.13816209,0.00019726,2]
[315409169,1709015445022,-3499.29,0.00019726,2]
[315409170,1709015445032,-500.0,0.00019726,2]
[315409171,1709015445041,-500.0,0.00019726,2]
[315409172,1709015445050,-500.0,0.00019726,2]
[315409173,1709015445060,-688.01,0.00019726,2]
[315409174,1709015445069,-1266.31,0.00019726,2]
[315409175,1709015445078,-818.42,0.00019726,2]
[315409176,1709015445087,-500.0,0.00019726,2]
[315409177,1709015445096,-1958.59,0.00019726,2]
[315409178,1709015445106,-398.21029264,0.00019726,2]
[315409179,1709015445115,-502.3448672,0.00019726,2]
[315409180,1709015445124,-500.0,0.00019726,2]
[315409181,1709015445133,-500.0,0.00019726,2]
[315409182,1709015445142,-500.0,0.00019726,2]
[315409183,1709015445151,-718.16,0.00019726,2]
[315409184,1709015445160,-500.0,0.00019726,2]
[315409185,1709015445169,-500.0,0.00019726,2]
[315409186,1709015445179,-1995.47,0.00019726,2]
[315409187,1709015445188,-500.0,0.00019726,2]
[315409188,1709015445197,-500.0,0.00019726,2]
[315409189,1709015445206,-552.22,0.00019726,2]
[315409190,1709015445215,-8975.46,0.00019726,2]
[315409191,1709015445224,-1758.47,0.00019726,2]
[315409192,1709015445233,-3499.25,0.00019726,2]
[315409193,1709015445242,-2577.01,0.00019726,2]
[315409194,1709015445251,-500.0,0.00019726,2]
[315409195,1709015445261,-500.0,0.00019726,2]
[315409196,1709015445270,-17396.29,0.00019726,2]
[315409197,1709015445280,-311.25723657,0.00019726,2]
[315409198,1709015445289,-500.0,0.00019726,2]
[315409199,1709015445298,-587.72307026,0.00019726,2]
[315409200,1709015445308,-500.0,0.00019726,2]
[315409201,1709015445317,-1286.73,0.00019726,2]
[315409202,1709015445327,-619.98,0.00019726,2]
[315409203,1709015445336,-860.53,0.00019726,2]
[315409204,1709015445345,-500.0,0.00019726,2]
[315409205,1709015445354,-2579.92,0.00019726,2]
[315409206,1709015445364,-863.05,0.00019726,2]
[315409207,1709015445373,-500.0,0.00019726,2]
[315409208,1709015445382,-1307.58,0.00019726,2]
[315409209,1709015445391,-500.0,0.00019726,2]
[315409210,1709015445401,-988.0061609,0.00019763,2]
[315409211,1709015445410,-153.0,0.000198,2]
[315409212,1709015445419,-1324.46051599,0.000198,2]
[315409213,1709015445429,-988.0061609,0.000199,2]
[315409214,1709015445438,-1823.09535832,0.000199,2]
[315409215,1709015445448,-743.86286849,0.00019998,2]
[315409216,1709015445457,-283.14939677,0.00019998,2]
[315409217,1709015445466,-850.77,0.00019998,2]
[315409219,1709015445475,-160.0,0.00019999,2]
[315409220,1709015445485,-275.63728496,0.00019999,2]
[315409222,1709015445494,-850.77,0.00019999,2]
[315409224,1709015445503,-850.77,0.00019999,2]
[315409226,1709015445512,-850.77,0.00019999,2]
[315409228,1709015445521,-850.77,0.00019999,2]
[315409231,1709015445532,-850.77,0.00019999,2]
[315409233,1709015445541,-850.77,0.00019999,2]
[315409234,1709015445550,-850.77,0.00019999,2]
[315409235,1709015445559,-850.77,0.00019999,2]
[315409236,1709015445568,-850.96986298,0.00019999,2]
[315409237,1709015445577,-500.0,0.00019999,2]
[315409239,1709015445586,-500.0,0.00019999,2]
[315409242,1709015445595,-176.55,0.00019999,2]
[315409244,1709015445605,-163.98847369,0.00019999,2]
[315409246,1709015445617,-172.61739575,0.00019999,2]
[315409248,1709015445627,-529.0892891,0.00019999,2]
[315409250,1709015445637,-500.0,0.00019999,2]
[315409251,1709015445645,-325.81531509,0.00019999,2]
[315409253,1709015445654,-421.9692663,0.00019999,2]
[315409255,1709015445665,-500.0,0.00019999,2]
[315409257,1709015445674,-500.0,0.00019999,2]
[315409259,1709015445683,-291.42633742,0.00019999,2]
[315409261,1709015445693,-500.0,0.00019999,2]
[315409263,1709015445702,-275.69843949,0.00019999,2]
[315409265,1709015445711,-500.0,0.00019999,2]
[315409267,1709015445721,-500.0,0.00019999,2]
[315409268,1709015445731,-425.6232399,0.00019999,2]
[315409269,1709015445740,-500.0,0.00019999,2]
[315409270,1709015445750,-180.0,0.00019999,2]
[315409272,1709015445759,-911956.05946552,0.0002,2]
[315409282,1709015445931,-319.88118119,0.0002,2]
[315409285,1709015445944,-2001.44092146,0.0002,2]
[315409327,1709016618106,192.23658245,0.00021088,21]
[315409372,1709016632712,-281.47879286,0.00017346,2]
[315409374,1709016632721,-24900.0,0.00017347,2]
[315409375,1709016632731,-155.18622347,0.00017733,2]
[315409377,1709016632740,-744.23051959,0.00017734,2]
[315409379,1709016632749,-155.18622347,0.00017734,2]
[315409381,1709016632759,-765.0835461,0.00017737,2]
[315409383,1709016632768,-16116.016759,0.00017749,2]
[315409385,1709016632777,-168.340011,0.00017866,2]
[315409387,1709016632787,-5874.8950045,0.00017961,2]
[315409389,1709016632797,-1126.46581835,0.00018002,2]
[315409391,1709016632807,-1883.983241,0.00018113,2]
[315409393,1709016632817,-662.24306832,0.000189,2]
[315409395,1709016632826,-2068.86104003,0.00018978,2]
[315409398,1709016632836,-740.3329,0.00019,2]
[315409400,1709016632845,-153.0,0.00019,2]
[315409403,1709016632855,-358.34,0.00019168,3]
[315409405,1709016632864,-179.17,0.00019168,3]
[315409407,1709016632873,-537.51,0.00019168,3]
[315409409,1709016632882,-1384.58265794,0.00019175,2]
[315409411,1709016632891,-279.33920429,0.00019176,2]
[315409413,1709016632900,-677.415638,0.00019176,2]
[315409415,1709016632909,-1213.5532049,0.00019177,2]
[315409417,1709016632918,-1213.57750513,0.00019177,2]
[315409419,1709016632927,-500.0,0.00019177,2]
[315409421,1709016632936,-500.0,0.00019178,2]
[315409423,1709016632946,-500.0,0.00019178,2]
[315409426,1709016632955,-151.0,0.00019178,2]
[315409427,1709016632964,-500.0,0.00019178,2]
[315409429,1709016632973,-500.52235363,0.00019178,2]
[315409431,1709016632982,-500.0,0.00019178,2]
[315409433,1709016632991,-495.59120605,0.00019178,2]
[315409435,1709016633001,-755.81,0.00019178,2]
[315409437,1709016633012,-500.57576377,0.00019178,2]
[315409439,1709016633022,-500.0,0.00019178,2]
[315409441,1709016633035,-500.0,0.00019178,2]
[315409443,1709016633048,-1276.81,0.00019178,2]
[315409445,1709016633058,-500.45432512,0.00019178,2]
[315409447,1709016633070,-148.49087288,0.00019178,2]
[315409851,1709016640254,-351.50912712,0.00019178,2]
[315409852,1709016640264,-258.94286417,0.00019178,2]
[315409853,1709016640274,-500.98721562,0.00019178,2]
[315409854,1709016640283,-500.0,0.00019178,2]
[315409855,1709016640293,-500.0,0.00019178,2]
[315409856,1709016640302,-93.06453736,0.00019178,2]
[315409857,1709016640335,-406.93546264,0.00019178,2]
[315409858,1709016640344,-500.45453436,0.00019178,2]